[Event "Titled Tuesday Blitz June 07 Early 2022"]
[White "Bilych, Olexiy"]
[Black "Martinez Alcantara, Jose Eduardo"]
[WhiteFideId "14156504"]
[BlackFideId "3805662"]
[WhiteElo "2189"]
[BlackElo "2703"]
[Result "0-1"]
[Round "03"]
[TimeControl "180+1"]
[Date "2022.06.07"]
[WhiteClock "0:00:12"]
[BlackClock "0:00:05"]

1. e4 {[%clk 0:03:00]}  c5 {[%clk 0:02:59]} 2. Nf3 {[%clk 0:03:00]}  d6 {[%clk 0:03:00]} 3. d4 {[%clk 0:03:01]}  cxd4 {[%clk 0:03:01]} 4. Nxd4 {[%clk 0:03:01]}  Nf6 {[%clk 0:03:01]} 5. Nc3 {[%clk 0:03:02]}  Nc6 {[%clk 0:03:02]} 6. Bg5 {[%clk 0:03:02]}  e6 {[%clk 0:03:01]} 7. Qd3 {[%clk 0:02:57]}  Bd7 {[%clk 0:02:53]} 8. O-O-O {[%clk 0:02:51]}  a6 {[%clk 0:02:46]} 9. Qg3 {[%clk 0:02:36]}  h6 {[%clk 0:02:34]} 10. Nxc6 {[%clk 0:02:30]}  Bxc6 {[%clk 0:02:25]} 11. Bf4 {[%clk 0:02:13]}  Nxe4 {[%clk 0:02:19]} 12. Nxe4 {[%clk 0:02:11]}  Bxe4 {[%clk 0:02:20]} 13. Bxd6 {[%clk 0:02:10]}  Bxd6 {[%clk 0:02:20]} 14. Rxd6 {[%clk 0:02:03]}  Qg5+ {[%clk 0:02:19]} 15. Qxg5 {[%clk 0:02:02]}  hxg5 {[%clk 0:02:20]} 16. f3 {[%clk 0:02:01]}  Bd5 {[%clk 0:02:16]} 17. c4 {[%clk 0:01:57]}  Ke7 {[%clk 0:02:08]} 18. Rb6 {[%clk 0:01:56]}  Bc6 {[%clk 0:02:09]} 19. Be2 {[%clk 0:01:55]}  g4 {[%clk 0:02:06]} 20. Rb3 {[%clk 0:01:52]}  Rad8 {[%clk 0:01:56]} 21. Re3 {[%clk 0:01:48]}  Rd4 {[%clk 0:01:43]} 22. b3 {[%clk 0:01:41]}  f5 {[%clk 0:01:31]} 23. Bd1 {[%clk 0:01:21]}  f4 {[%clk 0:01:15]} 24. Re5 {[%clk 0:01:16]}  Kf6 {[%clk 0:01:15]} 25. Rhe1 {[%clk 0:01:13]}  Re8 {[%clk 0:00:48]} 26. Kc2 {[%clk 0:00:44]}  g5 {[%clk 0:00:41]} 27. a4 {[%clk 0:00:36]}  Rxd1 {[%clk 0:00:34]} 28. Kxd1 {[%clk 0:00:35]}  gxf3 {[%clk 0:00:35]} 29. gxf3 {[%clk 0:00:34]}  Bxf3+ {[%clk 0:00:35]} 30. Kc2 {[%clk 0:00:35]}  Bg4 {[%clk 0:00:35]} 31. Kc3 {[%clk 0:00:30]}  Rh8 {[%clk 0:00:35]} 32. Rc5 {[%clk 0:00:23]}  Rxh2 {[%clk 0:00:33]} 33. Rg1 {[%clk 0:00:24]}  Bf5 {[%clk 0:00:32]} 34. Rc8 {[%clk 0:00:24]}  f3 {[%clk 0:00:26]} 35. Rf8+ {[%clk 0:00:24]}  Ke5 {[%clk 0:00:26]} 36. Re1+ {[%clk 0:00:21]}  Kf4 {[%clk 0:00:22]} 37. Rxe6 {[%clk 0:00:21]}  g4 {[%clk 0:00:23]} 38. Ref6 {[%clk 0:00:20]}  Rh5 {[%clk 0:00:23]} 39. Kd2 {[%clk 0:00:20]}  g3 {[%clk 0:00:24]} 40. Ke1 {[%clk 0:00:20]}  Ke5 {[%clk 0:00:11]} 41. R6f7 {[%clk 0:00:18]}  Rg5 {[%clk 0:00:06]} 42. Re7+ {[%clk 0:00:16]}  Kd4 {[%clk 0:00:05]} 43. Rd8+ {[%clk 0:00:15]}  Kc5 {[%clk 0:00:05]} 44. Re5+ {[%clk 0:00:15]}  Kb4 {[%clk 0:00:05]} 45. Rd1 {[%clk 0:00:13]}  f2+ {[%clk 0:00:04]} 46. Kd2 {[%clk 0:00:12]}  g2 {[%clk 0:00:05]} 47. Ke2 {[%clk 0:00:12]}  g1=Q {[%clk 0:00:05]} 0-1


[Site "https://www.chess.com"]

[Event "Titled Tuesday Blitz June 07 Early 2022"]
[White "Bluebaum, Matthias"]
[Black "Barp, Alberto"]
[WhiteFideId "24651516"]
[BlackFideId "872555"]
[WhiteElo "2556"]
[BlackElo "2229"]
[Result "1-0"]
[Round "03"]
[TimeControl "180+1"]
[Date "2022.06.07"]
[WhiteClock "0:01:26"]
[BlackClock "0:01:09"]

1. d4 {[%clk 0:03:00]}  Nf6 {[%clk 0:02:54]} 2. c4 {[%clk 0:03:01]}  e6 {[%clk 0:02:54]} 3. Nc3 {[%clk 0:03:01]}  Bb4 {[%clk 0:02:47]} 4. e3 {[%clk 0:03:02]}  O-O {[%clk 0:02:45]} 5. Bd2 {[%clk 0:03:00]}  b6 {[%clk 0:02:39]} 6. Bd3 {[%clk 0:02:59]}  Bb7 {[%clk 0:02:37]} 7. Nf3 {[%clk 0:02:59]}  Bxc3 {[%clk 0:02:26]} 8. Bxc3 {[%clk 0:03:00]}  Ne4 {[%clk 0:02:27]} 9. Bxe4 {[%clk 0:03:00]}  Bxe4 {[%clk 0:02:28]} 10. d5 {[%clk 0:03:01]}  f6 {[%clk 0:02:22]} 11. Nd2 {[%clk 0:02:58]}  Bg6 {[%clk 0:02:09]} 12. h4 {[%clk 0:02:58]}  h6 {[%clk 0:02:00]} 13. Qg4 {[%clk 0:02:57]}  Qe8 {[%clk 0:01:59]} 14. h5 {[%clk 0:02:56]}  Bf5 {[%clk 0:01:58]} 15. Qf3 {[%clk 0:02:56]}  Na6 {[%clk 0:01:55]} 16. b4 {[%clk 0:02:51]}  exd5 {[%clk 0:01:46]} 17. cxd5 {[%clk 0:02:43]}  c6 {[%clk 0:01:45]} 18. O-O {[%clk 0:02:23]}  Bh7 {[%clk 0:01:39]} 19. Rfe1 {[%clk 0:02:04]}  Nc7 {[%clk 0:01:37]} 20. e4 {[%clk 0:02:03]}  Nb5 {[%clk 0:01:34]} 21. Bb2 {[%clk 0:02:02]}  cxd5 {[%clk 0:01:30]} 22. exd5 {[%clk 0:02:00]}  Qf7 {[%clk 0:01:30]} 23. Nc4 {[%clk 0:01:31]}  Kh8 {[%clk 0:01:13]} 24. a4 {[%clk 0:01:30]}  Nc7 {[%clk 0:01:12]} 25. Rad1 {[%clk 0:01:27]}  Bg8 {[%clk 0:01:09]} 26. Nd6 {[%clk 0:01:26]} 1-0


[Site "https://www.chess.com"]

[Event "Titled Tuesday Blitz June 07 Early 2022"]
[White "Demchenko, Anton"]
[Black "Lianes Garcia, Marcos"]
[WhiteFideId "4160258"]
[BlackFideId "32060777"]
[WhiteElo "2539"]
[BlackElo "2310"]
[Result "1-0"]
[Round "03"]
[TimeControl "180+1"]
[Date "2022.06.07"]
[WhiteClock "0:00:08"]
[BlackClock "0:00:07"]

1. e4 {[%clk 0:03:00]}  g6 {[%clk 0:03:00]} 2. d4 {[%clk 0:03:00]}  Bg7 {[%clk 0:03:01]} 3. Nf3 {[%clk 0:02:58]}  c5 {[%clk 0:03:01]} 4. dxc5 {[%clk 0:02:58]}  Qa5+ {[%clk 0:03:01]} 5. c3 {[%clk 0:02:58]}  Qxc5 {[%clk 0:03:01]} 6. Na3 {[%clk 0:02:59]}  d6 {[%clk 0:03:01]} 7. Nb5 {[%clk 0:02:48]}  a6 {[%clk 0:03:01]} 8. Be3 {[%clk 0:02:38]}  Qc6 {[%clk 0:03:01]} 9. Nbd4 {[%clk 0:02:37]}  Qc7 {[%clk 0:03:01]} 10. Bd3 {[%clk 0:02:33]}  Nf6 {[%clk 0:03:01]} 11. O-O {[%clk 0:02:32]}  O-O {[%clk 0:03:01]} 12. Bc2 {[%clk 0:01:55]}  Nc6 {[%clk 0:03:00]} 13. Re1 {[%clk 0:01:54]}  Bd7 {[%clk 0:02:58]} 14. h3 {[%clk 0:01:52]}  Rac8 {[%clk 0:02:57]} 15. Rc1 {[%clk 0:01:44]}  Ne5 {[%clk 0:02:55]} 16. Nxe5 {[%clk 0:01:30]}  dxe5 {[%clk 0:02:56]} 17. Nf3 {[%clk 0:01:31]}  Rfd8 {[%clk 0:02:54]} 18. Nd2 {[%clk 0:01:29]}  Bc6 {[%clk 0:02:44]} 19. Qe2 {[%clk 0:01:18]}  b5 {[%clk 0:02:35]} 20. f3 {[%clk 0:01:13]}  Nd7 {[%clk 0:02:22]} 21. Qf2 {[%clk 0:01:05]}  e6 {[%clk 0:02:17]} 22. Nb3 {[%clk 0:01:05]}  Bf8 {[%clk 0:02:15]} 23. Rcd1 {[%clk 0:01:02]}  a5 {[%clk 0:02:12]} 24. Nc1 {[%clk 0:00:56]}  a4 {[%clk 0:02:11]} 25. a3 {[%clk 0:00:55]}  Bb7 {[%clk 0:02:06]} 26. Bd3 {[%clk 0:00:54]}  Bc6 {[%clk 0:01:50]} 27. Na2 {[%clk 0:00:53]}  Rb8 {[%clk 0:01:43]} 28. Nb4 {[%clk 0:00:50]}  Qb7 {[%clk 0:01:38]} 29. Bf1 {[%clk 0:00:47]}  Be7 {[%clk 0:01:32]} 30. Rd2 {[%clk 0:00:46]}  Nf6 {[%clk 0:01:19]} 31. Red1 {[%clk 0:00:38]}  Rxd2 {[%clk 0:01:19]} 32. Qxd2 {[%clk 0:00:38]}  Be8 {[%clk 0:01:15]} 33. Qf2 {[%clk 0:00:36]}  Rc8 {[%clk 0:01:13]} 34. g4 {[%clk 0:00:32]}  Nd7 {[%clk 0:01:11]} 35. Qg3 {[%clk 0:00:27]}  f6 {[%clk 0:01:07]} 36. h4 {[%clk 0:00:26]}  h6 {[%clk 0:01:04]} 37. Bxh6 {[%clk 0:00:23]}  Nc5 {[%clk 0:01:01]} 38. Be3 {[%clk 0:00:22]}  Kg7 {[%clk 0:00:58]} 39. g5 {[%clk 0:00:22]}  Kf7 {[%clk 0:00:43]} 40. gxf6 {[%clk 0:00:17]}  Bxf6 {[%clk 0:00:44]} 41. Bg5 {[%clk 0:00:17]}  Bg7 {[%clk 0:00:42]} 42. Be2 {[%clk 0:00:16]}  Rc7 {[%clk 0:00:38]} 43. Rd8 {[%clk 0:00:15]}  Rd7 {[%clk 0:00:37]} 44. Rxd7+ {[%clk 0:00:14]}  Qxd7 {[%clk 0:00:38]} 45. Qf2 {[%clk 0:00:14]}  Bf8 {[%clk 0:00:36]} 46. Kg2 {[%clk 0:00:09]}  Kg8 {[%clk 0:00:36]} 47. Bf1 {[%clk 0:00:08]}  Nb3 {[%clk 0:00:33]} 48. Qe2 {[%clk 0:00:07]}  Bc5 {[%clk 0:00:29]} 49. Nd3 {[%clk 0:00:07]}  Bd6 {[%clk 0:00:29]} 50. Qf2 {[%clk 0:00:08]}  Kh7 {[%clk 0:00:27]} 51. Qg3 {[%clk 0:00:07]}  Qc7 {[%clk 0:00:26]} 52. Be3 {[%clk 0:00:07]}  Qg7 {[%clk 0:00:25]} 53. Qg5 {[%clk 0:00:07]}  Bd7 {[%clk 0:00:16]} 54. Kf2 {[%clk 0:00:07]}  Be8 {[%clk 0:00:16]} 55. Ke2 {[%clk 0:00:07]}  Na5 {[%clk 0:00:15]} 56. Bh3 {[%clk 0:00:06]}  Bf7 {[%clk 0:00:12]} 57. Qd8 {[%clk 0:00:07]}  Nc4 {[%clk 0:00:12]} 58. Bg4 {[%clk 0:00:05]}  Nxe3 {[%clk 0:00:08]} 59. Kxe3 {[%clk 0:00:06]}  Bf8 {[%clk 0:00:07]} 60. Ke2 {[%clk 0:00:06]}  Qh6 {[%clk 0:00:06]} 61. Qg5 {[%clk 0:00:06]}  Qg7 {[%clk 0:00:06]} 62. Qxe5 {[%clk 0:00:06]}  Qh6 {[%clk 0:00:07]} 63. Qg5 {[%clk 0:00:06]}  Qg7 {[%clk 0:00:07]} 64. Ne5 {[%clk 0:00:06]}  Be8 {[%clk 0:00:08]} 65. h5 {[%clk 0:00:06]}  Qc7 {[%clk 0:00:07]} 66. hxg6+ {[%clk 0:00:06]}  Kg7 {[%clk 0:00:08]} 67. Bxe6 {[%clk 0:00:06]}  Qc5 {[%clk 0:00:06]} 68. Bd5 {[%clk 0:00:06]}  Be7 {[%clk 0:00:05]} 69. Qf5 {[%clk 0:00:05]}  Bf6 {[%clk 0:00:05]} 70. Ng4 {[%clk 0:00:05]}  Qe7 {[%clk 0:00:05]} 71. Qxf6+ {[%clk 0:00:05]}  Qxf6 {[%clk 0:00:06]} 72. Nxf6 {[%clk 0:00:06]}  Kxf6 {[%clk 0:00:07]} 73. f4 {[%clk 0:00:07]}  Bxg6 {[%clk 0:00:07]} 74. Ke3 {[%clk 0:00:08]}  Be8 {[%clk 0:00:07]} 75. Kd4 {[%clk 0:00:08]} 1-0


[Site "https://www.chess.com"]

[Event "Titled Tuesday Blitz June 07 Early 2022"]
[White "Deuer, Marius"]
[Black "Jaracz, Pawel"]
[WhiteFideId "16236432"]
[BlackFideId "1102222"]
[WhiteElo "2091"]
[BlackElo "2459"]
[Result "1-0"]
[Round "03"]
[TimeControl "180+1"]
[Date "2022.06.08"]
[WhiteClock "0:00:16"]
[BlackClock "0:00:03"]

1. e4 {[%clk 0:02:52]}  c5 {[%clk 0:02:59]} 2. Nf3 {[%clk 0:02:52]}  Nc6 {[%clk 0:02:59]} 3. d4 {[%clk 0:02:50]}  cxd4 {[%clk 0:02:59]} 4. Nxd4 {[%clk 0:02:51]}  Nf6 {[%clk 0:02:58]} 5. Nc3 {[%clk 0:02:51]}  e5 {[%clk 0:02:58]} 6. Ndb5 {[%clk 0:02:45]}  d6 {[%clk 0:02:58]} 7. Bg5 {[%clk 0:02:45]}  a6 {[%clk 0:02:58]} 8. Bxf6 {[%clk 0:02:45]}  gxf6 {[%clk 0:02:58]} 9. Na3 {[%clk 0:02:45]}  Bg7 {[%clk 0:02:58]} 10. Nc4 {[%clk 0:02:44]}  Nd4 {[%clk 0:02:41]} 11. Nd5 {[%clk 0:02:23]}  O-O {[%clk 0:02:38]} 12. c3 {[%clk 0:02:22]}  Nc6 {[%clk 0:02:29]} 13. Ndb6 {[%clk 0:02:21]}  Rb8 {[%clk 0:02:25]} 14. Qxd6 {[%clk 0:02:22]}  Be6 {[%clk 0:02:21]} 15. O-O-O {[%clk 0:02:15]}  f5 {[%clk 0:02:11]} 16. Qxd8 {[%clk 0:01:53]}  Rfxd8 {[%clk 0:02:10]} 17. Bd3 {[%clk 0:01:52]}  fxe4 {[%clk 0:02:06]} 18. Bxe4 {[%clk 0:01:52]}  f5 {[%clk 0:02:06]} 19. Bd5 {[%clk 0:01:53]}  Kf7 {[%clk 0:01:51]} 20. Rhe1 {[%clk 0:01:49]}  Bxd5 {[%clk 0:01:49]} 21. Nxd5 {[%clk 0:01:50]}  b5 {[%clk 0:01:48]} 22. Nce3 {[%clk 0:01:46]}  Bh6 {[%clk 0:01:39]} 23. Kb1 {[%clk 0:01:42]}  Bxe3 {[%clk 0:01:38]} 24. Nxe3 {[%clk 0:01:41]}  Ke6 {[%clk 0:01:38]} 25. a3 {[%clk 0:01:38]}  a5 {[%clk 0:01:32]} 26. Kc2 {[%clk 0:01:28]}  b4 {[%clk 0:01:31]} 27. axb4 {[%clk 0:01:26]}  axb4 {[%clk 0:01:31]} 28. Rxd8 {[%clk 0:01:26]}  Rxd8 {[%clk 0:01:31]} 29. Nc4 {[%clk 0:01:25]}  f4 {[%clk 0:01:22]} 30. g3 {[%clk 0:01:11]}  Kf5 {[%clk 0:01:18]} 31. Ra1 {[%clk 0:01:00]}  bxc3 {[%clk 0:01:06]} 32. bxc3 {[%clk 0:00:59]}  Rd5 {[%clk 0:00:54]} 33. Ra6 {[%clk 0:00:53]}  Rc5 {[%clk 0:00:54]} 34. Nd6+ {[%clk 0:00:53]}  Kg4 {[%clk 0:00:53]} 35. Kb3 {[%clk 0:00:43]}  Kf3 {[%clk 0:00:47]} 36. Ra4 {[%clk 0:00:34]}  Rd5 {[%clk 0:00:27]} 37. Ne4 {[%clk 0:00:27]}  Rd1 {[%clk 0:00:18]} 38. Ng5+ {[%clk 0:00:26]}  Kg4 {[%clk 0:00:15]} 39. Ne6 {[%clk 0:00:26]}  Kf5 {[%clk 0:00:12]} 40. Nc5 {[%clk 0:00:20]}  Rd2 {[%clk 0:00:13]} 41. Ne4 {[%clk 0:00:19]}  Re2 {[%clk 0:00:12]} 42. Nd6+ {[%clk 0:00:19]}  Kg4 {[%clk 0:00:12]} 43. Ne4 {[%clk 0:00:20]}  Kf3 {[%clk 0:00:12]} 44. Ng5+ {[%clk 0:00:19]}  Kxf2 {[%clk 0:00:12]} 45. gxf4 {[%clk 0:00:18]}  h6 {[%clk 0:00:11]} 46. Ne6 {[%clk 0:00:17]}  e4 {[%clk 0:00:10]} 47. Nd4 {[%clk 0:00:16]}  Re1 {[%clk 0:00:10]} 48. Nxc6 {[%clk 0:00:16]}  e3 {[%clk 0:00:10]} 49. Nd4 {[%clk 0:00:16]}  Rd1 {[%clk 0:00:09]} 50. Ra2+ {[%clk 0:00:16]}  Kg1 {[%clk 0:00:07]} 51. Kc4 {[%clk 0:00:15]}  Rf1 {[%clk 0:00:04]} 52. f5 {[%clk 0:00:15]}  Rf2 {[%clk 0:00:04]} 53. Re2 {[%clk 0:00:15]}  Kf1 {[%clk 0:00:03]} 54. Rxe3 {[%clk 0:00:15]}  Rxh2 {[%clk 0:00:03]} 55. Rf3+ {[%clk 0:00:15]}  Kg2 {[%clk 0:00:03]} 56. f6 {[%clk 0:00:16]} 1-0


[Site "https://www.chess.com"]

[Event "Titled Tuesday Blitz June 07 Early 2022"]
[White "Jaferian, Koosha"]
[Black "Dubov, Daniil"]
[WhiteFideId "12507440"]
[BlackFideId "24126055"]
[WhiteElo "2030"]
[BlackElo "2791"]
[Result "0-1"]
[Round "03"]
[TimeControl "180+1"]
[Date "2022.06.07"]
[WhiteClock "0:00:12"]
[BlackClock "0:01:40"]

1. Nf3 {[%clk 0:03:00]}  d5 {[%clk 0:02:59]} 2. b3 {[%clk 0:03:01]}  g6 {[%clk 0:02:55]} 3. Bb2 {[%clk 0:03:01]}  Nf6 {[%clk 0:02:56]} 4. c4 {[%clk 0:03:02]}  Bg7 {[%clk 0:02:56]} 5. g3 {[%clk 0:03:02]}  O-O {[%clk 0:02:55]} 6. Bg2 {[%clk 0:03:03]}  b6 {[%clk 0:02:46]} 7. O-O {[%clk 0:03:01]}  Bb7 {[%clk 0:02:46]} 8. d3 {[%clk 0:02:56]}  c5 {[%clk 0:02:44]} 9. cxd5 {[%clk 0:02:56]}  Bxd5 {[%clk 0:02:44]} 10. Nbd2 {[%clk 0:02:54]}  Bb7 {[%clk 0:02:42]} 11. Nc4 {[%clk 0:02:54]}  Nc6 {[%clk 0:02:41]} 12. Nfe5 {[%clk 0:02:53]}  Rc8 {[%clk 0:02:41]} 13. Rc1 {[%clk 0:02:37]}  Qc7 {[%clk 0:02:37]} 14. Qd2 {[%clk 0:02:17]}  Nxe5 {[%clk 0:02:35]} 15. Bxe5 {[%clk 0:02:17]}  Qd7 {[%clk 0:02:35]} 16. Bxb7 {[%clk 0:02:11]}  Qxb7 {[%clk 0:02:36]} 17. Qb2 {[%clk 0:02:12]}  h5 {[%clk 0:02:30]} 18. h4 {[%clk 0:02:03]}  Rfd8 {[%clk 0:02:29]} 19. Rfd1 {[%clk 0:01:53]}  Rd7 {[%clk 0:02:21]} 20. d4 {[%clk 0:01:39]}  Rcd8 {[%clk 0:02:19]} 21. Ne3 {[%clk 0:01:28]}  Bh6 {[%clk 0:02:03]} 22. Bxf6 {[%clk 0:00:48]}  Bxe3 {[%clk 0:02:00]} 23. fxe3 {[%clk 0:00:43]}  exf6 {[%clk 0:02:00]} 24. Rf1 {[%clk 0:00:42]}  Qe4 {[%clk 0:01:55]} 25. Rf3 {[%clk 0:00:32]}  cxd4 {[%clk 0:01:54]} 26. exd4 {[%clk 0:00:32]}  Rxd4 {[%clk 0:01:53]} 27. Rcf1 {[%clk 0:00:25]}  f5 {[%clk 0:01:51]} 28. R1f2 {[%clk 0:00:13]}  Rd1+ {[%clk 0:01:44]} 29. Kh2 {[%clk 0:00:13]}  Rb1 {[%clk 0:01:41]} 30. Qf6 {[%clk 0:00:12]}  Rdd1 {[%clk 0:01:40]} 0-1


[Site "https://www.chess.com"]

[Event "Titled Tuesday Blitz June 07 Early 2022"]
[White "Keller, Peter"]
[Black "Lagno, Kateryna"]
[WhiteFideId "1272105"]
[BlackFideId "14109336"]
[WhiteElo "2275"]
[BlackElo "2522"]
[Result "0-1"]
[Round "03"]
[TimeControl "180+1"]
[Date "2022.06.08"]
[WhiteClock "0:00:03"]
[BlackClock "0:00:16"]

1. e4 {[%clk 0:02:52]}  e5 {[%clk 0:02:59]} 2. Nf3 {[%clk 0:02:48]}  Nc6 {[%clk 0:02:59]} 3. Bc4 {[%clk 0:02:48]}  Bc5 {[%clk 0:02:54]} 4. O-O {[%clk 0:02:44]}  Nf6 {[%clk 0:02:53]} 5. d3 {[%clk 0:02:44]}  a6 {[%clk 0:02:51]} 6. c3 {[%clk 0:02:41]}  d6 {[%clk 0:02:51]} 7. a4 {[%clk 0:02:40]}  h6 {[%clk 0:02:48]} 8. Nbd2 {[%clk 0:02:40]}  Ba7 {[%clk 0:02:47]} 9. Re1 {[%clk 0:02:35]}  O-O {[%clk 0:02:40]} 10. h3 {[%clk 0:02:28]}  Re8 {[%clk 0:02:37]} 11. Nf1 {[%clk 0:02:28]}  Be6 {[%clk 0:02:37]} 12. b3 {[%clk 0:02:26]}  d5 {[%clk 0:02:32]} 13. exd5 {[%clk 0:02:24]}  Nxd5 {[%clk 0:02:33]} 14. Bd2 {[%clk 0:02:10]}  Qf6 {[%clk 0:02:32]} 15. b4 {[%clk 0:01:07]}  Rad8 {[%clk 0:02:28]} 16. b5 {[%clk 0:01:05]}  Na5 {[%clk 0:02:27]} 17. Ba2 {[%clk 0:00:34]}  Nf4 {[%clk 0:02:05]} 18. Bxf4 {[%clk 0:00:14]}  Qxf4 {[%clk 0:02:01]} 19. Rxe5 {[%clk 0:00:13]}  Bxa2 {[%clk 0:01:36]} 20. Rxe8+ {[%clk 0:00:14]}  Rxe8 {[%clk 0:01:36]} 21. Rxa2 {[%clk 0:00:15]}  Bc5 {[%clk 0:01:28]} 22. d4 {[%clk 0:00:15]}  Bd6 {[%clk 0:01:28]} 23. Re2 {[%clk 0:00:15]}  Rd8 {[%clk 0:01:26]} 24. Qd3 {[%clk 0:00:15]}  axb5 {[%clk 0:01:25]} 25. axb5 {[%clk 0:00:16]}  b6 {[%clk 0:01:23]} 26. Ng3 {[%clk 0:00:16]}  g6 {[%clk 0:01:23]} 27. Re4 {[%clk 0:00:15]}  Qf6 {[%clk 0:01:22]} 28. Qe3 {[%clk 0:00:14]}  h5 {[%clk 0:01:22]} 29. Re8+ {[%clk 0:00:13]}  Rxe8 {[%clk 0:01:21]} 30. Qxe8+ {[%clk 0:00:14]}  Kg7 {[%clk 0:01:22]} 31. Ne5 {[%clk 0:00:12]}  Qf4 {[%clk 0:01:19]} 32. Ne2 {[%clk 0:00:07]}  Qf5 {[%clk 0:01:19]} 33. g4 {[%clk 0:00:04]}  hxg4 {[%clk 0:01:17]} 34. hxg4 {[%clk 0:00:05]}  Qf6 {[%clk 0:01:16]} 35. f4 {[%clk 0:00:06]}  Qe6 {[%clk 0:01:14]} 36. Qxe6 {[%clk 0:00:02]}  fxe6 {[%clk 0:01:15]} 37. Nd3 {[%clk 0:00:02]}  Nc4 {[%clk 0:01:15]} 38. Kf2 {[%clk 0:00:03]}  Nd2 {[%clk 0:01:13]} 39. Ng3 {[%clk 0:00:03]}  Nb1 {[%clk 0:01:12]} 40. Ke3 {[%clk 0:00:03]}  Nxc3 {[%clk 0:01:12]} 41. Ne4 {[%clk 0:00:04]}  Nxb5 {[%clk 0:01:12]} 42. Nxd6 {[%clk 0:00:03]}  Nxd6 {[%clk 0:01:13]} 43. Ne5 {[%clk 0:00:02]}  b5 {[%clk 0:01:13]} 44. Kd3 {[%clk 0:00:02]}  Kf6 {[%clk 0:01:11]} 45. Nd7+ {[%clk 0:00:03]}  Ke7 {[%clk 0:01:08]} 46. Nc5 {[%clk 0:00:04]}  c6 {[%clk 0:01:04]} 47. Nb3 {[%clk 0:00:03]}  Ne8 {[%clk 0:01:00]} 48. Nc5 {[%clk 0:00:03]}  Nf6 {[%clk 0:01:00]} 49. g5 {[%clk 0:00:04]}  Nd5 {[%clk 0:01:00]} 50. Ke4 {[%clk 0:00:04]}  b4 {[%clk 0:01:00]} 51. Ke5 {[%clk 0:00:05]}  Nb6 {[%clk 0:00:54]} 52. Nb3 {[%clk 0:00:05]}  Nc4+ {[%clk 0:00:49]} 53. Ke4 {[%clk 0:00:06]}  Kd6 {[%clk 0:00:49]} 54. Kd3 {[%clk 0:00:06]}  Kd5 {[%clk 0:00:48]} 55. Nc5 {[%clk 0:00:07]}  Na5 {[%clk 0:00:46]} 56. Nd7 {[%clk 0:00:07]}  b3 {[%clk 0:00:44]} 57. Nf6+ {[%clk 0:00:07]}  Kd6 {[%clk 0:00:44]} 58. Kc3 {[%clk 0:00:08]}  c5 {[%clk 0:00:41]} 59. Ne4+ {[%clk 0:00:07]}  Kd5 {[%clk 0:00:41]} 60. Nxc5 {[%clk 0:00:07]}  Nc6 {[%clk 0:00:27]} 61. Kxb3 {[%clk 0:00:06]}  Nxd4+ {[%clk 0:00:27]} 62. Kb4 {[%clk 0:00:07]}  Ne2 {[%clk 0:00:21]} 63. Nd3 {[%clk 0:00:07]}  Kd4 {[%clk 0:00:20]} 64. Nc5 {[%clk 0:00:06]}  Nxf4 {[%clk 0:00:20]} 65. Nd7 {[%clk 0:00:07]}  e5 {[%clk 0:00:19]} 66. Kb3 {[%clk 0:00:06]}  e4 {[%clk 0:00:18]} 67. Kc2 {[%clk 0:00:06]}  e3 {[%clk 0:00:19]} 68. Kd1 {[%clk 0:00:07]}  Ke4 {[%clk 0:00:17]} 69. Nf6+ {[%clk 0:00:03]}  Kf3 {[%clk 0:00:17]} 70. Ke1 {[%clk 0:00:03]}  Nd3+ {[%clk 0:00:16]} 71. Kd1 {[%clk 0:00:03]}  e2+ {[%clk 0:00:16]} 0-1


[Site "https://www.chess.com"]

[Event "Titled Tuesday Blitz June 07 Early 2022"]
[White "Khanin, Semen"]
[Black "Golubovskis, Maksims"]
[WhiteFideId "4111990"]
[BlackFideId "11608528"]
[WhiteElo "2442"]
[BlackElo "2102"]
[Result "0-1"]
[Round "03"]
[TimeControl "180+1"]
[Date "2022.06.08"]
[WhiteClock "0:00:05"]
[BlackClock "0:00:08"]

1. e4 {[%clk 0:03:00]}  c5 {[%clk 0:02:59]} 2. Nf3 {[%clk 0:03:00]}  d6 {[%clk 0:02:54]} 3. d4 {[%clk 0:02:59]}  cxd4 {[%clk 0:02:55]} 4. Nxd4 {[%clk 0:02:59]}  Nf6 {[%clk 0:02:55]} 5. Nc3 {[%clk 0:03:00]}  a6 {[%clk 0:02:54]} 6. f3 {[%clk 0:03:00]}  e5 {[%clk 0:02:54]} 7. Nb3 {[%clk 0:03:00]}  Be6 {[%clk 0:02:54]} 8. Be3 {[%clk 0:03:01]}  h5 {[%clk 0:02:54]} 9. Qd2 {[%clk 0:03:00]}  Nbd7 {[%clk 0:02:55]} 10. Nd5 {[%clk 0:02:58]}  Nxd5 {[%clk 0:02:48]} 11. exd5 {[%clk 0:02:58]}  Bf5 {[%clk 0:02:49]} 12. Be2 {[%clk 0:02:53]}  g6 {[%clk 0:02:39]} 13. O-O {[%clk 0:02:47]}  Bg7 {[%clk 0:02:39]} 14. c4 {[%clk 0:02:47]}  O-O {[%clk 0:02:32]} 15. Na5 {[%clk 0:02:46]}  Qc7 {[%clk 0:02:24]} 16. Rac1 {[%clk 0:02:43]}  b6 {[%clk 0:02:14]} 17. Nc6 {[%clk 0:02:41]}  Nb8 {[%clk 0:02:14]} 18. Nxb8 {[%clk 0:02:38]}  Raxb8 {[%clk 0:02:12]} 19. b4 {[%clk 0:02:39]}  Rfc8 {[%clk 0:02:01]} 20. Rfd1 {[%clk 0:02:37]}  Qd7 {[%clk 0:01:37]} 21. c5 {[%clk 0:02:36]}  bxc5 {[%clk 0:01:36]} 22. Bxa6 {[%clk 0:02:35]}  Rd8 {[%clk 0:01:29]} 23. bxc5 {[%clk 0:02:35]}  dxc5 {[%clk 0:01:29]} 24. Rxc5 {[%clk 0:02:30]}  e4 {[%clk 0:01:25]} 25. fxe4 {[%clk 0:02:23]}  Bxe4 {[%clk 0:01:23]} 26. Bd4 {[%clk 0:02:17]}  Bxd4+ {[%clk 0:01:12]} 27. Qxd4 {[%clk 0:02:17]}  Qg4 {[%clk 0:01:06]} 28. Bf1 {[%clk 0:02:16]}  Rb2 {[%clk 0:00:59]} 29. Qxb2 {[%clk 0:01:49]}  Qxd1 {[%clk 0:00:59]} 30. Qf6 {[%clk 0:01:49]}  Rb8 {[%clk 0:00:36]} 31. d6 {[%clk 0:01:46]}  Bxg2 {[%clk 0:00:28]} 32. Kxg2 {[%clk 0:01:39]}  Qg4+ {[%clk 0:00:21]} 33. Kf2 {[%clk 0:01:38]}  Rb4 {[%clk 0:00:14]} 34. Rc4 {[%clk 0:00:19]}  Rxc4 {[%clk 0:00:14]} 35. Bxc4 {[%clk 0:00:20]}  Qxc4 {[%clk 0:00:14]} 36. Qe7 {[%clk 0:00:18]}  Qc2+ {[%clk 0:00:12]} 37. Ke3 {[%clk 0:00:18]}  Qc3+ {[%clk 0:00:11]} 38. Ke4 {[%clk 0:00:18]}  Qc4+ {[%clk 0:00:10]} 39. Ke3 {[%clk 0:00:14]}  Qc3+ {[%clk 0:00:10]} 40. Kf4 {[%clk 0:00:14]}  Qd4+ {[%clk 0:00:09]} 41. Kg5 {[%clk 0:00:14]}  Qd2+ {[%clk 0:00:08]} 42. Kh4 {[%clk 0:00:05]}  Qf4+ {[%clk 0:00:08]} 0-1


[Site "https://www.chess.com"]